Department family,Entity,Date,Expense type,Expense area,Supplier,Transaction number,Amount
Department of Health,Leicestershire Partnership NHS Trust,01/02/22,Computer Hardware,HIS External Recharge,DELL COMPUTERS,7402782491,39000.00
Department of Health,Leicestershire Partnership NHS Trust,01/02/22,Computer Consumables,HIS Services,DELL COMPUTERS,7402782491,2400.00
Department of Health,Leicestershire Partnership NHS Trust,01/02/22,Rent,"Syston Health Centre (New Building) (P127, LPT)",PHIP (5) LIMITED,LINV530991,37500.00
Department of Health,Leicestershire Partnership NHS Trust,01/02/22,Payroll Deductions -Salary Sacrifice Cars Scheme,Balance Sheet Collection,TUSKER,56152,31648.04
Department of Health,Leicestershire Partnership NHS Trust,02/02/22,Unitary Payment,"The Agnes Unit (AKA Assessment and Treatment Centre) (P85, LPT)",ARDEN PARTNERSHIP (LEICESTER),SI0088,121285.42
Department of Health,Leicestershire Partnership NHS Trust,02/02/22,Rent,"St Peters Health Center (Part 1st and 2nd floors) (P66, LPT)",LEICESTER LIFT CO,LEP1/SI0932,27433.45
Department of Health,Leicestershire Partnership NHS Trust,02/02/22,Nurse - Band 6 -Agency,AMH - Central Access Point,HCL NURSING,HNSI0000914,3622.68
Department of Health,Leicestershire Partnership NHS Trust,02/02/22,Nurse - Band 6 -Agency,Adult City East CMHT - Merlyn Vaz,HCL NURSING,HNSI0000914,1674.00
Department of Health,Leicestershire Partnership NHS Trust,02/02/22,Nurse - Band 6 -Agency,Adult County Charnwood CMHT - Loughborough Base,HCL NURSING,HNSI0000914,1069.97
Department of Health,Leicestershire Partnership NHS Trust,02/02/22,Nurse - Band 6 -Agency,Adult County West Leicestershire CMHT,HCL NURSING,HNSI0000914,1069.97
Department of Health,Leicestershire Partnership NHS Trust,02/02/22,NURSE - BAND 2 - AGENCY,Agnes Unit Management,HCL NURSING,HNSI0000914,31392.02
Department of Health,Leicestershire Partnership NHS Trust,02/02/22,NURSE - BAND 5 - AGENCY,Agnes Unit Management,HCL NURSING,HNSI0000914,19187.82
Department of Health,Leicestershire Partnership NHS Trust,02/02/22,NURSE - BAND 2 - AGENCY,Ashby Ward (Bradgate Unit),HCL NURSING,HNSI0000914,1241.64
Department of Health,Leicestershire Partnership NHS Trust,02/02/22,NURSE - BAND 5 - AGENCY,Ashby Ward (Bradgate Unit),HCL NURSING,HNSI0000914,3259.90
Department of Health,Leicestershire Partnership NHS Trust,02/02/22,NURSE - BAND 2 - AGENCY,Aston Ward (Bradgate Unit),HCL NURSING,HNSI0000914,3965.79
Department of Health,Leicestershire Partnership NHS Trust,02/02/22,NURSE - BAND 5 - AGENCY,Aston Ward (Bradgate Unit),HCL NURSING,HNSI0000914,8232.96
Department of Health,Leicestershire Partnership NHS Trust,02/02/22,NURSE - BAND 2 - AGENCY,Beaumont Ward - Bradgate Unit,HCL NURSING,HNSI0000914,1919.43
Department of Health,Leicestershire Partnership NHS Trust,02/02/22,NURSE - BAND 5 - AGENCY,Beaumont Ward - Bradgate Unit,HCL NURSING,HNSI0000914,5759.17
Department of Health,Leicestershire Partnership NHS Trust,02/02/22,NURSE - BAND 2 - AGENCY,Belvoir Psychiatric Intensive Care Unit,HCL NURSING,HNSI0000914,2843.67
Department of Health,Leicestershire Partnership NHS Trust,02/02/22,NURSE - BAND 5 - AGENCY,Belvoir Psychiatric Intensive Care Unit,HCL NURSING,HNSI0000914,6791.91
Department of Health,Leicestershire Partnership NHS Trust,02/02/22,NURSE - BAND 2 - AGENCY,Cedar (Willows),HCL NURSING,HNSI0000914,1670.53
Department of Health,Leicestershire Partnership NHS Trust,02/02/22,Nurse - Band 6 -Agency,City West CMHT MHSOP,HCL NURSING,HNSI0000914,1046.25
Department of Health,Leicestershire Partnership NHS Trust,02/02/22,NURSE - BAND 2 - AGENCY,Coleman Ward,HCL NURSING,HNSI0000914,1799.04
Department of Health,Leicestershire Partnership NHS Trust,02/02/22,NURSE - BAND 5 - AGENCY,Coleman Ward,HCL NURSING,HNSI0000914,6860.87
Department of Health,Leicestershire Partnership NHS Trust,02/02/22,Nurse - Band 6 -Agency,Crisis Resolution,HCL NURSING,HNSI0000914,1864.25
Department of Health,Leicestershire Partnership NHS Trust,02/02/22,NURSE - BAND 2 - AGENCY,Griffin Ward (HPC),HCL NURSING,HNSI0000914,7879.54
Department of Health,Leicestershire Partnership NHS Trust,02/02/22,NURSE - BAND 5 - AGENCY,Griffin Ward (HPC),HCL NURSING,HNSI0000914,22112.36
Department of Health,Leicestershire Partnership NHS Trust,02/02/22,NURSE - BAND 2 - AGENCY,Heather Ward,HCL NURSING,HNSI0000914,1967.59
Department of Health,Leicestershire Partnership NHS Trust,02/02/22,NURSE - BAND 5 - AGENCY,Heather Ward,HCL NURSING,HNSI0000914,9264.84
Department of Health,Leicestershire Partnership NHS Trust,02/02/22,NURSE - BAND 2 - AGENCY,Kirby Ward,HCL NURSING,HNSI0000914,1156.72
Department of Health,Leicestershire Partnership NHS Trust,02/02/22,NURSE - BAND 5 - AGENCY,Kirby Ward,HCL NURSING,HNSI0000914,843.31
Department of Health,Leicestershire Partnership NHS Trust,02/02/22,NURSE - BAND 2 - AGENCY,Maple Ward,HCL NURSING,HNSI0000914,3839.26
Department of Health,Leicestershire Partnership NHS Trust,02/02/22,NURSE - BAND 5 - AGENCY,Maple Ward,HCL NURSING,HNSI0000914,525.35
Department of Health,Leicestershire Partnership NHS Trust,02/02/22,Nurse - Band 6 -Agency,Mental Health Liaison Team,HCL NURSING,HNSI0000914,1365.31
Department of Health,Leicestershire Partnership NHS Trust,02/02/22,NURSE - BAND 2 - AGENCY,Mill Lodge,HCL NURSING,HNSI0000914,1995.32
Department of Health,Leicestershire Partnership NHS Trust,02/02/22,NURSE - BAND 5 - AGENCY,Mill Lodge,HCL NURSING,HNSI0000914,7188.66
Department of Health,Leicestershire Partnership NHS Trust,02/02/22,NURSE - BAND 2 - AGENCY,Phoenix Ward (HPC),HCL NURSING,HNSI0000914,2276.04
Department of Health,Leicestershire Partnership NHS Trust,02/02/22,NURSE - BAND 5 - AGENCY,Phoenix Ward (HPC),HCL NURSING,HNSI0000914,1495.43
Department of Health,Leicestershire Partnership NHS Trust,02/02/22,NURSE - BAND 2 - AGENCY,Place Of Safety Assessment Unit,HCL NURSING,HNSI0000914,4005.09
Department of Health,Leicestershire Partnership NHS Trust,02/02/22,NURSE - BAND 5 - AGENCY,Place Of Safety Assessment Unit,HCL NURSING,HNSI0000914,3124.79
Department of Health,Leicestershire Partnership NHS Trust,02/02/22,NURSE - BAND 2 - AGENCY,Stewart House,HCL NURSING,HNSI0000914,752.58
Department of Health,Leicestershire Partnership NHS Trust,02/02/22,NURSE - BAND 5 - AGENCY,Stewart House,HCL NURSING,HNSI0000914,2894.50
Department of Health,Leicestershire Partnership NHS Trust,02/02/22,NURSE - BAND 2 - AGENCY,Sycamore (Willows),HCL NURSING,HNSI0000914,3544.48
Department of Health,Leicestershire Partnership NHS Trust,02/02/22,NURSE - BAND 5 - AGENCY,Sycamore (Willows),HCL NURSING,HNSI0000914,2223.60
Department of Health,Leicestershire Partnership NHS Trust,02/02/22,NURSE - BAND 2 - AGENCY,Thornton Ward - Bradgate Unit,HCL NURSING,HNSI0000914,1650.96
Department of Health,Leicestershire Partnership NHS Trust,02/02/22,NURSE - BAND 5 - AGENCY,Thornton Ward - Bradgate Unit,HCL NURSING,HNSI0000914,1388.85
Department of Health,Leicestershire Partnership NHS Trust,02/02/22,NURSE - BAND 2 - AGENCY,Watermead Ward (Bradgate Unit),HCL NURSING,HNSI0000914,5103.15
Department of Health,Leicestershire Partnership NHS Trust,02/02/22,NURSE - BAND 5 - AGENCY,Watermead Ward (Bradgate Unit),HCL NURSING,HNSI0000914,11033.05
Department of Health,Leicestershire Partnership NHS Trust,02/02/22,NURSE - BAND 2 - AGENCY,Welford Ward,HCL NURSING,HNSI0000914,182.71
Department of Health,Leicestershire Partnership NHS Trust,02/02/22,NURSE - BAND 5 - AGENCY,Welford Ward,HCL NURSING,HNSI0000914,939.30
Department of Health,Leicestershire Partnership NHS Trust,02/02/22,NURSE - BAND 5 - AGENCY,Willows Unit,HCL NURSING,HNSI0000914,1183.00
Department of Health,Leicestershire Partnership NHS Trust,02/02/22,Nurse - Band 6 -Agency,CAMHS Waiting List Monies,HCL SOCIAL CARE,HWSI0001008,31963.13
Department of Health,Leicestershire Partnership NHS Trust,02/02/22,NURSE - BAND 2 - AGENCY,CAMHS ED Team,HCL NURSING,HNSI0000916,4948.91
Department of Health,Leicestershire Partnership NHS Trust,02/02/22,NURSE - BAND 2 - AGENCY,CAMHS Inpatient Service,HCL NURSING,HNSI0000916,20460.87
Department of Health,Leicestershire Partnership NHS Trust,02/02/22,NURSE - BAND 5 - AGENCY,CAMHS Inpatient Service,HCL NURSING,HNSI0000916,2917.60
Department of Health,Leicestershire Partnership NHS Trust,02/02/22,Nurse - Band 6 -Agency,CAMHS Waiting List Monies,HCL NURSING,HNSI0000916,4083.32
Department of Health,Leicestershire Partnership NHS Trust,02/02/22,NURSE - BAND 2 - AGENCY,Langley Ward ED Inpatient Service,HCL NURSING,HNSI0000916,2276.91
Department of Health,Leicestershire Partnership NHS Trust,02/02/22,NURSE - BAND 5 - AGENCY,Langley Ward ED Inpatient Service,HCL NURSING,HNSI0000916,3031.53
Department of Health,Leicestershire Partnership NHS Trust,02/02/22,External Data Processing / Storage,Records & information Governance,H COATES LTD/TA C&V DATA,4008068,29945.94
Department of Health,Leicestershire Partnership NHS Trust,02/02/22,Contract : Accomodation,Crisis House and Cafe,TURNING POINT,SI-TPS-00037726,96937.75
Department of Health,Leicestershire Partnership NHS Trust,03/02/22,NURSE - BAND 2 - AGENCY,Beechwood Ward,HCL NURSING,HNSI0000915,5153.29
Department of Health,Leicestershire Partnership NHS Trust,03/02/22,NURSE - BAND 5 - AGENCY,Beechwood Ward,HCL NURSING,HNSI0000915,2120.39
Department of Health,Leicestershire Partnership NHS Trust,03/02/22,NURSE - BAND 3 - AGENCY,CHS Phlebotomy Service,HCL NURSING,HNSI0000915,643.17
Department of Health,Leicestershire Partnership NHS Trust,03/02/22,NURSE - BAND 5 - AGENCY,City Planned Care - East,HCL NURSING,HNSI0000915,14849.41
Department of Health,Leicestershire Partnership NHS Trust,03/02/22,NURSE - BAND 5 - AGENCY,City Planned Care - West,HCL NURSING,HNSI0000915,15624.35
Department of Health,Leicestershire Partnership NHS Trust,03/02/22,NURSE - BAND 2 - AGENCY,Clarendon Ward,HCL NURSING,HNSI0000915,4733.91
Department of Health,Leicestershire Partnership NHS Trust,03/02/22,NURSE - BAND 5 - AGENCY,Clarendon Ward,HCL NURSING,HNSI0000915,6662.46
Department of Health,Leicestershire Partnership NHS Trust,03/02/22,NURSE - BAND 5 - AGENCY,Coalville Snibston Ward,HCL NURSING,HNSI0000915,2611.17
Department of Health,Leicestershire Partnership NHS Trust,03/02/22,NURSE - BAND 2 - AGENCY,Coalville Ward 2,HCL NURSING,HNSI0000915,1382.29
Department of Health,Leicestershire Partnership NHS Trust,03/02/22,NURSE - BAND 5 - AGENCY,Coalville Ward 2,HCL NURSING,HNSI0000915,1819.16
Department of Health,Leicestershire Partnership NHS Trust,03/02/22,NURSE - BAND 2 - AGENCY,Dalgliesh Ward,HCL NURSING,HNSI0000915,1578.28
Department of Health,Leicestershire Partnership NHS Trust,03/02/22,NURSE - BAND 5 - AGENCY,Dalgliesh Ward,HCL NURSING,HNSI0000915,1658.55
Department of Health,Leicestershire Partnership NHS Trust,03/02/22,NURSE - BAND 2 - AGENCY,H&B Comm Hosp East Ward,HCL NURSING,HNSI0000915,2777.26
Department of Health,Leicestershire Partnership NHS Trust,03/02/22,NURSE - BAND 5 - AGENCY,H&B Comm Hosp East Ward,HCL NURSING,HNSI0000915,8851.31
Department of Health,Leicestershire Partnership NHS Trust,03/02/22,NURSE - BAND 2 - AGENCY,H&B Comm Hosp North Ward,HCL NURSING,HNSI0000915,7727.64
Department of Health,Leicestershire Partnership NHS Trust,03/02/22,NURSE - BAND 5 - AGENCY,H&B Comm Hosp North Ward,HCL NURSING,HNSI0000915,5951.84
Department of Health,Leicestershire Partnership NHS Trust,03/02/22,NURSE - BAND 2 - AGENCY,Lough Swithland Ward,HCL NURSING,HNSI0000915,1201.53
Department of Health,Leicestershire Partnership NHS Trust,03/02/22,NURSE - BAND 5 - AGENCY,Lough Swithland Ward,HCL NURSING,HNSI0000915,2670.55
Department of Health,Leicestershire Partnership NHS Trust,03/02/22,NURSE - BAND 5 - AGENCY,Rutland Ward Nursing,HCL NURSING,HNSI0000915,411.62
Department of Health,Leicestershire Partnership NHS Trust,03/02/22,NURSE - BAND 2 - AGENCY,St Lukes Stroke Ward,HCL NURSING,HNSI0000915,928.41
Department of Health,Leicestershire Partnership NHS Trust,03/02/22,NURSE - BAND 5 - AGENCY,St Lukes Stroke Ward,HCL NURSING,HNSI0000915,1756.01
Department of Health,Leicestershire Partnership NHS Trust,03/02/22,NURSE - BAND 2 - AGENCY,St Lukes Ward 3,HCL NURSING,HNSI0000915,830.41
Department of Health,Leicestershire Partnership NHS Trust,03/02/22,NURSE - BAND 5 - AGENCY,St Lukes Ward 3,HCL NURSING,HNSI0000915,945.56
Department of Health,Leicestershire Partnership NHS Trust,03/02/22,NURSE - BAND 2 - AGENCY,Wakerley Ward,HCL NURSING,HNSI0000915,5415.11
Department of Health,Leicestershire Partnership NHS Trust,03/02/22,NURSE - BAND 5 - AGENCY,Wakerley Ward,HCL NURSING,HNSI0000915,7301.84
Department of Health,Leicestershire Partnership NHS Trust,03/02/22,Network Costs - WAN Maint,HIS Infrastructure,CCS MEDIA,4445602,36089.23
Department of Health,Leicestershire Partnership NHS Trust,03/02/22,GP IT Expenditure,Area Team,DELL COMPUTERS,7402781913,46603.20
Department of Health,Leicestershire Partnership NHS Trust,04/02/22,CHP Estates Management,Merlyn Vaz Centre (CHP),COMM HLTH PARTNERSHIPS LTD,0060230970,58679.75
Department of Health,Leicestershire Partnership NHS Trust,04/02/22,Healthcare Services / Recharges from Non-NHS Bodies,COVID vaccination for Children and Young people,NUP S CORPORATION LTD,5,31858.50
Department of Health,Leicestershire Partnership NHS Trust,04/02/22,External Consultancy Fees,School Age Immunisation and Vaccinations,NUP S CORPORATION LTD,5,0.00
Department of Health,Leicestershire Partnership NHS Trust,04/02/22,Healthcare Services / Recharges from Non-NHS Bodies,COVID vaccination for Children and Young people,NUP S CORPORATION LTD,6,31700.00
Department of Health,Leicestershire Partnership NHS Trust,07/02/22,Crs_NHS_LT1y -Resus Inventory Supplied.,Balance Sheet Collection,SUPPLY CHAIN CO LTD,1122207710,31556.61
Department of Health,Leicestershire Partnership NHS Trust,08/02/22,Healthcare Services / Recharges from Non-NHS Bodies,CAMHS Outpatients,HEALIOS LTD,2359,29640.00
Department of Health,Leicestershire Partnership NHS Trust,08/02/22,Legal Fees,Chief Executives Office,BROWNE JACOBSON LLP,IN-000097959,30312.72
Department of Health,Leicestershire Partnership NHS Trust,09/02/22,HR / Payroll Services,HR Employment Services,LINCOLNSHIRE PART NHSFT(RP7),L0000115,29360.83
Department of Health,Leicestershire Partnership NHS Trust,09/02/22,WIP Project Not in BS - Buildings excl Dwellings,Work in Progress,TILBURY DOUGLAS CONSTRUCTION LTD,22020116,126654.67
Department of Health,Leicestershire Partnership NHS Trust,09/02/22,WIP Project Not in BS - Buildings excl Dwellings,Work in Progress,TILBURY DOUGLAS CONSTRUCTION LTD,22020080,38596.46
Department of Health,Leicestershire Partnership NHS Trust,09/02/22,WIP Project Not in BS - Buildings excl Dwellings,Work in Progress,TILBURY DOUGLAS CONSTRUCTION LTD,22020079,125725.51
Department of Health,Leicestershire Partnership NHS Trust,09/02/22,WIP Project Not in BS - Buildings excl Dwellings,Work in Progress,TILBURY DOUGLAS CONSTRUCTION LTD,22020078,28515.17
Department of Health,Leicestershire Partnership NHS Trust,09/02/22,WIP Project Not in BS - Buildings excl Dwellings,Work in Progress,TILBURY DOUGLAS CONSTRUCTION LTD,22020077,38486.45
Department of Health,Leicestershire Partnership NHS Trust,09/02/22,WIP Project Not in BS - Buildings excl Dwellings,Work in Progress,TILBURY DOUGLAS CONSTRUCTION LTD,22020075,49736.56
Department of Health,Leicestershire Partnership NHS Trust,09/02/22,WIP Project Not in BS - Buildings excl Dwellings,Work in Progress,TILBURY DOUGLAS CONSTRUCTION LTD,22020133,214698.35
Department of Health,Leicestershire Partnership NHS Trust,09/02/22,WIP Project Not in BS - Buildings excl Dwellings,Work in Progress,TILBURY DOUGLAS CONSTRUCTION LTD,22020135,63785.59
Department of Health,Leicestershire Partnership NHS Trust,10/02/22,Network Costs - WAN Maint,HIS Infrastructure,VIRGIN MEDIA BUSINESS,262421-190,28483.36
Department of Health,Leicestershire Partnership NHS Trust,10/02/22,Healthcare Services / Recharges from Non-NHS Bodies,Adult Eating Disorder Collaborative,NAVIGO H&SC CIC,SAL-INV-6860,45540.00
Department of Health,Leicestershire Partnership NHS Trust,10/02/22,Drugs,Adult City Drugs,JANSSEN-CILAG LTD,930813791,12519.12
Department of Health,Leicestershire Partnership NHS Trust,10/02/22,Drugs,Adult County Drugs,JANSSEN-CILAG LTD,930813791,18778.68
Department of Health,Leicestershire Partnership NHS Trust,11/02/22,Services / Recharges from NHS Trusts,Inter Unit I & E Distribution,UHL NHS TRUST (RWE),L0257394,60000.04
Department of Health,Leicestershire Partnership NHS Trust,11/02/22,Telephone equipment,"Bradgate Unit (including Glenvale day Unit) (P7, LPT)",VIRGIN MEDIA BUSINESS,60047880,35577.49
Department of Health,Leicestershire Partnership NHS Trust,15/02/22,Nurse - Band 6 -Agency,AMH - Central Access Point,HCL NURSING,HNSI0000934,7105.65
Department of Health,Leicestershire Partnership NHS Trust,15/02/22,NURSE - BAND 2 - AGENCY,Acacia (Willows),HCL NURSING,HNSI0000934,356.02
Department of Health,Leicestershire Partnership NHS Trust,15/02/22,Nurse - Band 6 -Agency,Adult County Charnwood CMHT - Loughborough Base,HCL NURSING,HNSI0000934,2418.12
Department of Health,Leicestershire Partnership NHS Trust,15/02/22,Nurse - Band 6 -Agency,Adult County West Leicestershire CMHT,HCL NURSING,HNSI0000934,1069.97
Department of Health,Leicestershire Partnership NHS Trust,15/02/22,NURSE - BAND 2 - AGENCY,Agnes Unit Management,HCL NURSING,HNSI0000934,24216.68
Department of Health,Leicestershire Partnership NHS Trust,15/02/22,NURSE - BAND 5 - AGENCY,Agnes Unit Management,HCL NURSING,HNSI0000934,19967.30
Department of Health,Leicestershire Partnership NHS Trust,15/02/22,NURSE - BAND 2 - AGENCY,Ashby Ward (Bradgate Unit),HCL NURSING,HNSI0000934,567.00
Department of Health,Leicestershire Partnership NHS Trust,15/02/22,NURSE - BAND 5 - AGENCY,Ashby Ward (Bradgate Unit),HCL NURSING,HNSI0000934,3702.81
Department of Health,Leicestershire Partnership NHS Trust,15/02/22,NURSE - BAND 2 - AGENCY,Aston Ward (Bradgate Unit),HCL NURSING,HNSI0000934,3795.04
Department of Health,Leicestershire Partnership NHS Trust,15/02/22,NURSE - BAND 5 - AGENCY,Aston Ward (Bradgate Unit),HCL NURSING,HNSI0000934,11205.27
Department of Health,Leicestershire Partnership NHS Trust,15/02/22,NURSE - BAND 2 - AGENCY,Beaumont Ward - Bradgate Unit,HCL NURSING,HNSI0000934,4736.72
Department of Health,Leicestershire Partnership NHS Trust,15/02/22,NURSE - BAND 5 - AGENCY,Beaumont Ward - Bradgate Unit,HCL NURSING,HNSI0000934,7926.23
Department of Health,Leicestershire Partnership NHS Trust,15/02/22,NURSE - BAND 2 - AGENCY,Belvoir Psychiatric Intensive Care Unit,HCL NURSING,HNSI0000934,2451.02
Department of Health,Leicestershire Partnership NHS Trust,15/02/22,NURSE - BAND 5 - AGENCY,Belvoir Psychiatric Intensive Care Unit,HCL NURSING,HNSI0000934,3540.83
Department of Health,Leicestershire Partnership NHS Trust,15/02/22,NURSE - BAND 2 - AGENCY,Cedar (Willows),HCL NURSING,HNSI0000934,1625.32
Department of Health,Leicestershire Partnership NHS Trust,15/02/22,NURSE - BAND 5 - AGENCY,Cedar (Willows),HCL NURSING,HNSI0000934,532.35
Department of Health,Leicestershire Partnership NHS Trust,15/02/22,Nurse - Band 6 -Agency,City West CMHT MHSOP,HCL NURSING,HNSI0000934,1335.00
Department of Health,Leicestershire Partnership NHS Trust,15/02/22,NURSE - BAND 2 - AGENCY,Coleman Ward,HCL NURSING,HNSI0000934,2597.28
Department of Health,Leicestershire Partnership NHS Trust,15/02/22,NURSE - BAND 5 - AGENCY,Coleman Ward,HCL NURSING,HNSI0000934,3474.33
Department of Health,Leicestershire Partnership NHS Trust,15/02/22,NURSE - BAND 2 - AGENCY,Griffin Ward (HPC),HCL NURSING,HNSI0000934,8716.35
Department of Health,Leicestershire Partnership NHS Trust,15/02/22,NURSE - BAND 5 - AGENCY,Griffin Ward (HPC),HCL NURSING,HNSI0000934,3187.59
Department of Health,Leicestershire Partnership NHS Trust,15/02/22,NURSE - BAND 2 - AGENCY,Heather Ward,HCL NURSING,HNSI0000934,1112.02
Department of Health,Leicestershire Partnership NHS Trust,15/02/22,NURSE - BAND 5 - AGENCY,Heather Ward,HCL NURSING,HNSI0000934,3870.67
Department of Health,Leicestershire Partnership NHS Trust,15/02/22,NURSE - BAND 2 - AGENCY,Kirby Ward,HCL NURSING,HNSI0000934,7812.55
Department of Health,Leicestershire Partnership NHS Trust,15/02/22,NURSE - BAND 5 - AGENCY,Kirby Ward,HCL NURSING,HNSI0000934,3361.26
Department of Health,Leicestershire Partnership NHS Trust,15/02/22,NURSE - BAND 2 - AGENCY,Maple Ward,HCL NURSING,HNSI0000934,1191.69
Department of Health,Leicestershire Partnership NHS Trust,15/02/22,NURSE - BAND 5 - AGENCY,Maple Ward,HCL NURSING,HNSI0000934,1115.50
Department of Health,Leicestershire Partnership NHS Trust,15/02/22,Nurse - Band 6 -Agency,Mental Health Liaison Team,HCL NURSING,HNSI0000934,1773.46
Department of Health,Leicestershire Partnership NHS Trust,15/02/22,NURSE - BAND 2 - AGENCY,Mill Lodge,HCL NURSING,HNSI0000934,4145.97
Department of Health,Leicestershire Partnership NHS Trust,15/02/22,NURSE - BAND 5 - AGENCY,Mill Lodge,HCL NURSING,HNSI0000934,10122.84
Department of Health,Leicestershire Partnership NHS Trust,15/02/22,NURSE - BAND 2 - AGENCY,Phoenix Ward (HPC),HCL NURSING,HNSI0000934,1307.32
Department of Health,Leicestershire Partnership NHS Trust,15/02/22,NURSE - BAND 5 - AGENCY,Phoenix Ward (HPC),HCL NURSING,HNSI0000934,6020.10
Department of Health,Leicestershire Partnership NHS Trust,15/02/22,NURSE - BAND 2 - AGENCY,Place Of Safety Assessment Unit,HCL NURSING,HNSI0000934,223.59
Department of Health,Leicestershire Partnership NHS Trust,15/02/22,NURSE - BAND 5 - AGENCY,Place Of Safety Assessment Unit,HCL NURSING,HNSI0000934,3488.02
Department of Health,Leicestershire Partnership NHS Trust,15/02/22,NURSE - BAND 2 - AGENCY,Stewart House,HCL NURSING,HNSI0000934,764.10
Department of Health,Leicestershire Partnership NHS Trust,15/02/22,NURSE - BAND 5 - AGENCY,Stewart House,HCL NURSING,HNSI0000934,3945.91
Department of Health,Leicestershire Partnership NHS Trust,15/02/22,NURSE - BAND 2 - AGENCY,Sycamore (Willows),HCL NURSING,HNSI0000934,3363.40
Department of Health,Leicestershire Partnership NHS Trust,15/02/22,NURSE - BAND 5 - AGENCY,Sycamore (Willows),HCL NURSING,HNSI0000934,5477.78
Department of Health,Leicestershire Partnership NHS Trust,15/02/22,NURSE - BAND 2 - AGENCY,Thornton Ward - Bradgate Unit,HCL NURSING,HNSI0000934,2004.02
Department of Health,Leicestershire Partnership NHS Trust,15/02/22,NURSE - BAND 5 - AGENCY,Thornton Ward - Bradgate Unit,HCL NURSING,HNSI0000934,1985.78
Department of Health,Leicestershire Partnership NHS Trust,15/02/22,NURSE - BAND 2 - AGENCY,Watermead Ward (Bradgate Unit),HCL NURSING,HNSI0000934,5129.59
Department of Health,Leicestershire Partnership NHS Trust,15/02/22,NURSE - BAND 5 - AGENCY,Watermead Ward (Bradgate Unit),HCL NURSING,HNSI0000934,14062.74
Department of Health,Leicestershire Partnership NHS Trust,15/02/22,NURSE - BAND 2 - AGENCY,Welford Ward,HCL NURSING,HNSI0000934,2673.31
Department of Health,Leicestershire Partnership NHS Trust,15/02/22,NURSE - BAND 5 - AGENCY,Welford Ward,HCL NURSING,HNSI0000934,2348.25
Department of Health,Leicestershire Partnership NHS Trust,15/02/22,Nurse - Band 6 -Agency,AMH - Central Access Point,HCL NURSING,HNSI0000924,5251.65
Department of Health,Leicestershire Partnership NHS Trust,15/02/22,Nurse - Band 6 -Agency,Adult City East CMHT - Merlyn Vaz,HCL NURSING,HNSI0000924,837.00
Department of Health,Leicestershire Partnership NHS Trust,15/02/22,Nurse - Band 6 -Agency,Adult County West Leicestershire CMHT,HCL NURSING,HNSI0000924,1069.97
Department of Health,Leicestershire Partnership NHS Trust,15/02/22,NURSE - BAND 2 - AGENCY,Agnes Unit Management,HCL NURSING,HNSI0000924,29322.04
Department of Health,Leicestershire Partnership NHS Trust,15/02/22,NURSE - BAND 5 - AGENCY,Agnes Unit Management,HCL NURSING,HNSI0000924,19380.53
Department of Health,Leicestershire Partnership NHS Trust,15/02/22,NURSE - BAND 2 - AGENCY,Ashby Ward (Bradgate Unit),HCL NURSING,HNSI0000924,605.54
Department of Health,Leicestershire Partnership NHS Trust,15/02/22,NURSE - BAND 5 - AGENCY,Ashby Ward (Bradgate Unit),HCL NURSING,HNSI0000924,3815.50
Department of Health,Leicestershire Partnership NHS Trust,15/02/22,NURSE - BAND 2 - AGENCY,Aston Ward (Bradgate Unit),HCL NURSING,HNSI0000924,7555.33
Department of Health,Leicestershire Partnership NHS Trust,15/02/22,NURSE - BAND 5 - AGENCY,Aston Ward (Bradgate Unit),HCL NURSING,HNSI0000924,18336.67
Department of Health,Leicestershire Partnership NHS Trust,15/02/22,NURSE - BAND 2 - AGENCY,Beaumont Ward - Bradgate Unit,HCL NURSING,HNSI0000924,4121.65
Department of Health,Leicestershire Partnership NHS Trust,15/02/22,NURSE - BAND 5 - AGENCY,Beaumont Ward - Bradgate Unit,HCL NURSING,HNSI0000924,5350.29
Department of Health,Leicestershire Partnership NHS Trust,15/02/22,NURSE - BAND 2 - AGENCY,Belvoir Psychiatric Intensive Care Unit,HCL NURSING,HNSI0000924,1936.81
Department of Health,Leicestershire Partnership NHS Trust,15/02/22,NURSE - BAND 5 - AGENCY,Belvoir Psychiatric Intensive Care Unit,HCL NURSING,HNSI0000924,3582.33
Department of Health,Leicestershire Partnership NHS Trust,15/02/22,NURSE - BAND 2 - AGENCY,Cedar (Willows),HCL NURSING,HNSI0000924,1332.41
Department of Health,Leicestershire Partnership NHS Trust,15/02/22,NURSE - BAND 5 - AGENCY,Cedar (Willows),HCL NURSING,HNSI0000924,2071.58
Department of Health,Leicestershire Partnership NHS Trust,15/02/22,Nurse - Band 6 -Agency,City West CMHT MHSOP,HCL NURSING,HNSI0000924,1046.25
Department of Health,Leicestershire Partnership NHS Trust,15/02/22,NURSE - BAND 2 - AGENCY,Coleman Ward,HCL NURSING,HNSI0000924,563.76
Department of Health,Leicestershire Partnership NHS Trust,15/02/22,NURSE - BAND 5 - AGENCY,Coleman Ward,HCL NURSING,HNSI0000924,4392.86
Department of Health,Leicestershire Partnership NHS Trust,15/02/22,Nurse - Band 6 -Agency,Crisis Resolution,HCL NURSING,HNSI0000924,2258.00
Department of Health,Leicestershire Partnership NHS Trust,15/02/22,NURSE - BAND 2 - AGENCY,Griffin Ward (HPC),HCL NURSING,HNSI0000924,3110.24
Department of Health,Leicestershire Partnership NHS Trust,15/02/22,NURSE - BAND 5 - AGENCY,Griffin Ward (HPC),HCL NURSING,HNSI0000924,9460.78
Department of Health,Leicestershire Partnership NHS Trust,15/02/22,NURSE - BAND 2 - AGENCY,Heather Ward,HCL NURSING,HNSI0000924,1593.01
Department of Health,Leicestershire Partnership NHS Trust,15/02/22,NURSE - BAND 5 - AGENCY,Heather Ward,HCL NURSING,HNSI0000924,6030.62
Department of Health,Leicestershire Partnership NHS Trust,15/02/22,NURSE - BAND 2 - AGENCY,Kirby Ward,HCL NURSING,HNSI0000924,1695.78
Department of Health,Leicestershire Partnership NHS Trust,15/02/22,NURSE - BAND 5 - AGENCY,Kirby Ward,HCL NURSING,HNSI0000924,2552.51
Department of Health,Leicestershire Partnership NHS Trust,15/02/22,NURSE - BAND 2 - AGENCY,Maple Ward,HCL NURSING,HNSI0000924,1920.54
Department of Health,Leicestershire Partnership NHS Trust,15/02/22,NURSE - BAND 5 - AGENCY,Maple Ward,HCL NURSING,HNSI0000924,2519.44
Department of Health,Leicestershire Partnership NHS Trust,15/02/22,Nurse - Band 6 -Agency,Mental Health Liaison Team,HCL NURSING,HNSI0000924,1773.46
Department of Health,Leicestershire Partnership NHS Trust,15/02/22,NURSE - BAND 2 - AGENCY,Mill Lodge,HCL NURSING,HNSI0000924,1955.03
Department of Health,Leicestershire Partnership NHS Trust,15/02/22,NURSE - BAND 5 - AGENCY,Mill Lodge,HCL NURSING,HNSI0000924,5878.85
Department of Health,Leicestershire Partnership NHS Trust,15/02/22,NURSE - BAND 2 - AGENCY,Phoenix Ward (HPC),HCL NURSING,HNSI0000924,1116.48
Department of Health,Leicestershire Partnership NHS Trust,15/02/22,NURSE - BAND 5 - AGENCY,Phoenix Ward (HPC),HCL NURSING,HNSI0000924,4148.40
Department of Health,Leicestershire Partnership NHS Trust,15/02/22,NURSE - BAND 2 - AGENCY,Place Of Safety Assessment Unit,HCL NURSING,HNSI0000924,546.97
Department of Health,Leicestershire Partnership NHS Trust,15/02/22,NURSE - BAND 5 - AGENCY,Place Of Safety Assessment Unit,HCL NURSING,HNSI0000924,4614.07
Department of Health,Leicestershire Partnership NHS Trust,15/02/22,NURSE - BAND 2 - AGENCY,Stewart House,HCL NURSING,HNSI0000924,1357.02
Department of Health,Leicestershire Partnership NHS Trust,15/02/22,NURSE - BAND 5 - AGENCY,Stewart House,HCL NURSING,HNSI0000924,5911.39
Department of Health,Leicestershire Partnership NHS Trust,15/02/22,NURSE - BAND 2 - AGENCY,Sycamore (Willows),HCL NURSING,HNSI0000924,3582.08
Department of Health,Leicestershire Partnership NHS Trust,15/02/22,NURSE - BAND 5 - AGENCY,Sycamore (Willows),HCL NURSING,HNSI0000924,3217.83
Department of Health,Leicestershire Partnership NHS Trust,15/02/22,NURSE - BAND 2 - AGENCY,Thornton Ward - Bradgate Unit,HCL NURSING,HNSI0000924,269.49
Department of Health,Leicestershire Partnership NHS Trust,15/02/22,NURSE - BAND 5 - AGENCY,Thornton Ward - Bradgate Unit,HCL NURSING,HNSI0000924,1966.21
Department of Health,Leicestershire Partnership NHS Trust,15/02/22,NURSE - BAND 2 - AGENCY,Watermead Ward (Bradgate Unit),HCL NURSING,HNSI0000924,4330.14
Department of Health,Leicestershire Partnership NHS Trust,15/02/22,NURSE - BAND 5 - AGENCY,Watermead Ward (Bradgate Unit),HCL NURSING,HNSI0000924,3210.41
Department of Health,Leicestershire Partnership NHS Trust,15/02/22,NURSE - BAND 2 - AGENCY,Welford Ward,HCL NURSING,HNSI0000924,3134.45
Department of Health,Leicestershire Partnership NHS Trust,15/02/22,Nurse - Band 6 -Agency,CAMHS HUB / CAP,HCL SOCIAL CARE,HWSI0001030,8693.73
Department of Health,Leicestershire Partnership NHS Trust,15/02/22,Nurse - Band 6 -Agency,CAMHS Waiting List Monies,HCL SOCIAL CARE,HWSI0001030,20573.20
Department of Health,Leicestershire Partnership NHS Trust,15/02/22,NURSE - BAND 2 - AGENCY,CAMHS ED Team,HCL NURSING,HNSI0000936,388.57
Department of Health,Leicestershire Partnership NHS Trust,15/02/22,NURSE - BAND 2 - AGENCY,CAMHS Inpatient Service,HCL NURSING,HNSI0000936,11237.65
Department of Health,Leicestershire Partnership NHS Trust,15/02/22,NURSE - BAND 5 - AGENCY,CAMHS Inpatient Service,HCL NURSING,HNSI0000936,4336.79
Department of Health,Leicestershire Partnership NHS Trust,15/02/22,NURSE - BAND 2 - AGENCY,CAMHS Outpatients,HCL NURSING,HNSI0000936,386.81
Department of Health,Leicestershire Partnership NHS Trust,15/02/22,NURSE - BAND 5 - AGENCY,CAMHS Waiting List Monies,HCL NURSING,HNSI0000936,719.10
Department of Health,Leicestershire Partnership NHS Trust,15/02/22,Nurse - Band 6 -Agency,CAMHS Waiting List Monies,HCL NURSING,HNSI0000936,2510.51
Department of Health,Leicestershire Partnership NHS Trust,15/02/22,NURSE - BAND 2 - AGENCY,Langley Ward ED Inpatient Service,HCL NURSING,HNSI0000936,2311.61
Department of Health,Leicestershire Partnership NHS Trust,15/02/22,NURSE - BAND 5 - AGENCY,Langley Ward ED Inpatient Service,HCL NURSING,HNSI0000936,4125.04
Department of Health,Leicestershire Partnership NHS Trust,15/02/22,Nurse - Band 6 -Agency,CAMHS HUB / CAP,HCL SOCIAL CARE,HWSI0001023,9658.62
Department of Health,Leicestershire Partnership NHS Trust,15/02/22,Nurse - Band 6 -Agency,CAMHS Waiting List Monies,HCL SOCIAL CARE,HWSI0001023,22469.32
Department of Health,Leicestershire Partnership NHS Trust,15/02/22,Nurse - Band 6 -Agency,Crisis Response and Home Treatment,HCL SOCIAL CARE,HWSI0001023,1321.22
Department of Health,Leicestershire Partnership NHS Trust,15/02/22,NURSE - BAND 2 - AGENCY,CAMHS Inpatient Service,HCL NURSING,HNSI0000926,20391.26
Department of Health,Leicestershire Partnership NHS Trust,15/02/22,NURSE - BAND 5 - AGENCY,CAMHS Inpatient Service,HCL NURSING,HNSI0000926,932.30
Department of Health,Leicestershire Partnership NHS Trust,15/02/22,NURSE - BAND 5 - AGENCY,CAMHS Waiting List Monies,HCL NURSING,HNSI0000926,1374.37
Department of Health,Leicestershire Partnership NHS Trust,15/02/22,Nurse - Band 6 -Agency,CAMHS Waiting List Monies,HCL NURSING,HNSI0000926,6686.82
Department of Health,Leicestershire Partnership NHS Trust,15/02/22,NURSE - BAND 2 - AGENCY,Crisis Response and Home Treatment,HCL NURSING,HNSI0000926,424.61
Department of Health,Leicestershire Partnership NHS Trust,15/02/22,NURSE - BAND 2 - AGENCY,Langley Ward ED Inpatient Service,HCL NURSING,HNSI0000926,1148.76
Department of Health,Leicestershire Partnership NHS Trust,15/02/22,NURSE - BAND 5 - AGENCY,Langley Ward ED Inpatient Service,HCL NURSING,HNSI0000926,2763.89
Department of Health,Leicestershire Partnership NHS Trust,15/02/22,Photocopying,Estates & Facilities Central,LEXMARK INTERNATIONAL LTD,900650302593,35189.80
Department of Health,Leicestershire Partnership NHS Trust,15/02/22,NURSE - BAND 2 - AGENCY,Beechwood Ward,HCL NURSING,HNSI0000935,7509.19
Department of Health,Leicestershire Partnership NHS Trust,15/02/22,NURSE - BAND 5 - AGENCY,Beechwood Ward,HCL NURSING,HNSI0000935,1930.13
Department of Health,Leicestershire Partnership NHS Trust,15/02/22,NURSE - BAND 5 - AGENCY,City Planned Care - East,HCL NURSING,HNSI0000935,16481.25
Department of Health,Leicestershire Partnership NHS Trust,15/02/22,NURSE - BAND 5 - AGENCY,City Planned Care - West,HCL NURSING,HNSI0000935,14791.72
Department of Health,Leicestershire Partnership NHS Trust,15/02/22,NURSE - BAND 2 - AGENCY,Clarendon Ward,HCL NURSING,HNSI0000935,4988.52
Department of Health,Leicestershire Partnership NHS Trust,15/02/22,NURSE - BAND 5 - AGENCY,Clarendon Ward,HCL NURSING,HNSI0000935,7397.69
Department of Health,Leicestershire Partnership NHS Trust,15/02/22,NURSE - BAND 2 - AGENCY,Coalville Snibston Ward,HCL NURSING,HNSI0000935,1147.87
Department of Health,Leicestershire Partnership NHS Trust,15/02/22,NURSE - BAND 5 - AGENCY,Coalville Snibston Ward,HCL NURSING,HNSI0000935,3460.33
Department of Health,Leicestershire Partnership NHS Trust,15/02/22,NURSE - BAND 2 - AGENCY,Coalville Ward 2,HCL NURSING,HNSI0000935,3650.25
Department of Health,Leicestershire Partnership NHS Trust,15/02/22,NURSE - BAND 2 - AGENCY,Dalgliesh Ward,HCL NURSING,HNSI0000935,1793.44
Department of Health,Leicestershire Partnership NHS Trust,15/02/22,NURSE - BAND 5 - AGENCY,Dalgliesh Ward,HCL NURSING,HNSI0000935,978.06
Department of Health,Leicestershire Partnership NHS Trust,15/02/22,NURSE - BAND 2 - AGENCY,H&B Comm Hosp East Ward,HCL NURSING,HNSI0000935,5156.17
Department of Health,Leicestershire Partnership NHS Trust,15/02/22,NURSE - BAND 5 - AGENCY,H&B Comm Hosp East Ward,HCL NURSING,HNSI0000935,11503.15
Department of Health,Leicestershire Partnership NHS Trust,15/02/22,NURSE - BAND 2 - AGENCY,H&B Comm Hosp North Ward,HCL NURSING,HNSI0000935,5064.90
Department of Health,Leicestershire Partnership NHS Trust,15/02/22,NURSE - BAND 5 - AGENCY,H&B Comm Hosp North Ward,HCL NURSING,HNSI0000935,3803.97
Department of Health,Leicestershire Partnership NHS Trust,15/02/22,NURSE - BAND 2 - AGENCY,Lough Swithland Ward,HCL NURSING,HNSI0000935,2544.39
Department of Health,Leicestershire Partnership NHS Trust,15/02/22,NURSE - BAND 5 - AGENCY,Lough Swithland Ward,HCL NURSING,HNSI0000935,1716.37
Department of Health,Leicestershire Partnership NHS Trust,15/02/22,NURSE - BAND 2 - AGENCY,Rutland Ward Nursing,HCL NURSING,HNSI0000935,3774.16
Department of Health,Leicestershire Partnership NHS Trust,15/02/22,NURSE - BAND 2 - AGENCY,St Lukes Stroke Ward,HCL NURSING,HNSI0000935,3424.67
Department of Health,Leicestershire Partnership NHS Trust,15/02/22,NURSE - BAND 5 - AGENCY,St Lukes Stroke Ward,HCL NURSING,HNSI0000935,632.50
Department of Health,Leicestershire Partnership NHS Trust,15/02/22,NURSE - BAND 2 - AGENCY,St Lukes Ward 3,HCL NURSING,HNSI0000935,344.03
Department of Health,Leicestershire Partnership NHS Trust,15/02/22,NURSE - BAND 5 - AGENCY,St Lukes Ward 3,HCL NURSING,HNSI0000935,1488.39
Department of Health,Leicestershire Partnership NHS Trust,15/02/22,NURSE - BAND 2 - AGENCY,Wakerley Ward,HCL NURSING,HNSI0000935,4505.55
Department of Health,Leicestershire Partnership NHS Trust,15/02/22,NURSE - BAND 5 - AGENCY,Wakerley Ward,HCL NURSING,HNSI0000935,4560.68
Department of Health,Leicestershire Partnership NHS Trust,15/02/22,NURSE - BAND 2 - AGENCY,Beechwood Ward,HCL NURSING,HNSI0000925,4039.89
Department of Health,Leicestershire Partnership NHS Trust,15/02/22,NURSE - BAND 5 - AGENCY,Beechwood Ward,HCL NURSING,HNSI0000925,2867.22
Department of Health,Leicestershire Partnership NHS Trust,15/02/22,NURSE - BAND 5 - AGENCY,City Planned Care - East,HCL NURSING,HNSI0000925,8517.86
Department of Health,Leicestershire Partnership NHS Trust,15/02/22,NURSE - BAND 5 - AGENCY,City Planned Care - West,HCL NURSING,HNSI0000925,13897.95
Department of Health,Leicestershire Partnership NHS Trust,15/02/22,NURSE - BAND 2 - AGENCY,Clarendon Ward,HCL NURSING,HNSI0000925,4406.51
Department of Health,Leicestershire Partnership NHS Trust,15/02/22,NURSE - BAND 5 - AGENCY,Clarendon Ward,HCL NURSING,HNSI0000925,5948.21
Department of Health,Leicestershire Partnership NHS Trust,15/02/22,NURSE - BAND 2 - AGENCY,Coalville Snibston Ward,HCL NURSING,HNSI0000925,647.21
Department of Health,Leicestershire Partnership NHS Trust,15/02/22,NURSE - BAND 5 - AGENCY,Coalville Snibston Ward,HCL NURSING,HNSI0000925,4513.40
Department of Health,Leicestershire Partnership NHS Trust,15/02/22,NURSE - BAND 2 - AGENCY,Coalville Ward 2,HCL NURSING,HNSI0000925,3201.43
Department of Health,Leicestershire Partnership NHS Trust,15/02/22,NURSE - BAND 5 - AGENCY,Coalville Ward 2,HCL NURSING,HNSI0000925,1976.15
Department of Health,Leicestershire Partnership NHS Trust,15/02/22,NURSE - BAND 2 - AGENCY,Dalgliesh Ward,HCL NURSING,HNSI0000925,1364.27
Department of Health,Leicestershire Partnership NHS Trust,15/02/22,NURSE - BAND 5 - AGENCY,Dalgliesh Ward,HCL NURSING,HNSI0000925,4367.89
Department of Health,Leicestershire Partnership NHS Trust,15/02/22,NURSE - BAND 2 - AGENCY,H&B Comm Hosp East Ward,HCL NURSING,HNSI0000925,4025.34
Department of Health,Leicestershire Partnership NHS Trust,15/02/22,NURSE - BAND 5 - AGENCY,H&B Comm Hosp East Ward,HCL NURSING,HNSI0000925,6732.22
Department of Health,Leicestershire Partnership NHS Trust,15/02/22,NURSE - BAND 2 - AGENCY,H&B Comm Hosp North Ward,HCL NURSING,HNSI0000925,7277.29
Department of Health,Leicestershire Partnership NHS Trust,15/02/22,NURSE - BAND 5 - AGENCY,H&B Comm Hosp North Ward,HCL NURSING,HNSI0000925,4252.32
Department of Health,Leicestershire Partnership NHS Trust,15/02/22,NURSE - BAND 2 - AGENCY,Lough Swithland Ward,HCL NURSING,HNSI0000925,1107.06
Department of Health,Leicestershire Partnership NHS Trust,15/02/22,NURSE - BAND 5 - AGENCY,Lough Swithland Ward,HCL NURSING,HNSI0000925,3757.25
Department of Health,Leicestershire Partnership NHS Trust,15/02/22,NURSE - BAND 2 - AGENCY,Rutland Ward Nursing,HCL NURSING,HNSI0000925,1673.23
Department of Health,Leicestershire Partnership NHS Trust,15/02/22,NURSE - BAND 5 - AGENCY,Rutland Ward Nursing,HCL NURSING,HNSI0000925,571.85
Department of Health,Leicestershire Partnership NHS Trust,15/02/22,NURSE - BAND 2 - AGENCY,St Lukes Stroke Ward,HCL NURSING,HNSI0000925,1649.35
Department of Health,Leicestershire Partnership NHS Trust,15/02/22,NURSE - BAND 5 - AGENCY,St Lukes Stroke Ward,HCL NURSING,HNSI0000925,329.84
Department of Health,Leicestershire Partnership NHS Trust,15/02/22,NURSE - BAND 2 - AGENCY,St Lukes Ward 3,HCL NURSING,HNSI0000925,1862.47
Department of Health,Leicestershire Partnership NHS Trust,15/02/22,NURSE - BAND 5 - AGENCY,St Lukes Ward 3,HCL NURSING,HNSI0000925,1370.60
Department of Health,Leicestershire Partnership NHS Trust,15/02/22,NURSE - BAND 2 - AGENCY,Wakerley Ward,HCL NURSING,HNSI0000925,3915.10
Department of Health,Leicestershire Partnership NHS Trust,15/02/22,NURSE - BAND 5 - AGENCY,Wakerley Ward,HCL NURSING,HNSI0000925,8599.54
Department of Health,Leicestershire Partnership NHS Trust,16/02/22,Subscriptions,Speech & Language Therapy,REACT2 LTD,INV-7920,38400.00
Department of Health,Leicestershire Partnership NHS Trust,16/02/22,Med GP Trainees,Medical Trainees,ST.HELENS & KNOWSLEY NHS TRUST,16811550,75000.00
Department of Health,Leicestershire Partnership NHS Trust,18/02/22,FP10'S,Adult City Drugs,NHS BUS SERVICES AUTHORITY,1000072212,16546.97
Department of Health,Leicestershire Partnership NHS Trust,18/02/22,FP10'S,Adult County Drugs,NHS BUS SERVICES AUTHORITY,1000072212,27307.88
Department of Health,Leicestershire Partnership NHS Trust,18/02/22,FP10'S,CAMHS Outpatients,NHS BUS SERVICES AUTHORITY,1000072212,7978.37
Department of Health,Leicestershire Partnership NHS Trust,18/02/22,FP10'S,Community Paediatrics,NHS BUS SERVICES AUTHORITY,1000072212,9267.30
Department of Health,Leicestershire Partnership NHS Trust,18/02/22,FP10'S,Dementia Related Drugs and Investigations,NHS BUS SERVICES AUTHORITY,1000072212,5482.22
Department of Health,Leicestershire Partnership NHS Trust,18/02/22,FP10'S,Eating Disorders Outpatient Service,NHS BUS SERVICES AUTHORITY,1000072212,1231.49
Department of Health,Leicestershire Partnership NHS Trust,18/02/22,FP10'S,Forensic Services - Community,NHS BUS SERVICES AUTHORITY,1000072212,157.10
Department of Health,Leicestershire Partnership NHS Trust,18/02/22,FP10'S,LOROS Pharmacy,NHS BUS SERVICES AUTHORITY,1000072212,840.53
Department of Health,Leicestershire Partnership NHS Trust,18/02/22,FP10'S,Liason Psychiatry Service,NHS BUS SERVICES AUTHORITY,1000072212,38.76
Department of Health,Leicestershire Partnership NHS Trust,18/02/22,FP10'S,Mental Health Liaison Team,NHS BUS SERVICES AUTHORITY,1000072212,1.09
Department of Health,Leicestershire Partnership NHS Trust,18/02/22,FP10'S,PIER Team - Early Intervention Services,NHS BUS SERVICES AUTHORITY,1000072212,12718.83
Department of Health,Leicestershire Partnership NHS Trust,18/02/22,FP10'S,Snr Med Staff (Inc Med Reps),NHS BUS SERVICES AUTHORITY,1000072212,4255.02
Department of Health,Leicestershire Partnership NHS Trust,18/02/22,Landline Telephone Rental / Calls,"Beaumont Leys Health Centre (P94, LPT)",VIRGIN MEDIA BUSINESS,853083001/004/0222,367.55
Department of Health,Leicestershire Partnership NHS Trust,18/02/22,Landline Telephone Rental / Calls,"Bennion Centre (including Forest Grange Day Unit) (P8, LPT)",VIRGIN MEDIA BUSINESS,853083001/004/0222,7.74
Department of Health,Leicestershire Partnership NHS Trust,18/02/22,Landline Telephone Rental / Calls,"Bradgate Unit (including Glenvale day Unit) (P7, LPT)",VIRGIN MEDIA BUSINESS,853083001/004/0222,8100.16
Department of Health,Leicestershire Partnership NHS Trust,18/02/22,Landline Telephone Rental / Calls,Braunstone Health and Social Care Centre (Part) (PROPCO),VIRGIN MEDIA BUSINESS,853083001/004/0222,1080.30
Department of Health,Leicestershire Partnership NHS Trust,18/02/22,Landline Telephone Rental / Calls,Bridge Park Plaza - First Floor (LPT),VIRGIN MEDIA BUSINESS,853083001/004/0222,4271.74
Department of Health,Leicestershire Partnership NHS Trust,18/02/22,Landline Telephone Rental / Calls,"Coalville Community Hospital (P138, LPT)",VIRGIN MEDIA BUSINESS,853083001/004/0222,1438.02
Department of Health,Leicestershire Partnership NHS Trust,18/02/22,Landline Telephone Rental / Calls,"Coalville Health Centre (P121, LPT)",VIRGIN MEDIA BUSINESS,853083001/004/0222,152.88
Department of Health,Leicestershire Partnership NHS Trust,18/02/22,Landline Telephone Rental / Calls,County Hall,VIRGIN MEDIA BUSINESS,853083001/004/0222,3466.93
Department of Health,Leicestershire Partnership NHS Trust,18/02/22,Landline Telephone Rental / Calls,Estates & Facilities Central,VIRGIN MEDIA BUSINESS,853083001/004/0222,13.12
Department of Health,Leicestershire Partnership NHS Trust,18/02/22,Landline Telephone Rental / Calls,"Evington Centre (P6, LPT)",VIRGIN MEDIA BUSINESS,853083001/004/0222,1796.21
Department of Health,Leicestershire Partnership NHS Trust,18/02/22,Landline Telephone Rental / Calls,HIS,VIRGIN MEDIA BUSINESS,853083001/004/0222,3116.69
Department of Health,Leicestershire Partnership NHS Trust,18/02/22,Landline Telephone Rental / Calls,"Hawthorne Centre - Coalville (P14, LPT)",VIRGIN MEDIA BUSINESS,853083001/004/0222,510.02
Department of Health,Leicestershire Partnership NHS Trust,18/02/22,Landline Telephone Rental / Calls,"Hinckley and Bosworth Community Hospital (Sunnyside) (P133, LPT)",VIRGIN MEDIA BUSINESS,853083001/004/0222,1076.62
Department of Health,Leicestershire Partnership NHS Trust,18/02/22,Landline Telephone Rental / Calls,Hood Park Leisure Centre Clinic,VIRGIN MEDIA BUSINESS,853083001/004/0222,23.95
Department of Health,Leicestershire Partnership NHS Trust,18/02/22,Landline Telephone Rental / Calls,"Hynca Lodge (P33, LPT)",VIRGIN MEDIA BUSINESS,853083001/004/0222,374.06
Department of Health,Leicestershire Partnership NHS Trust,18/02/22,Landline Telephone Rental / Calls,"Legion House, Ashby",VIRGIN MEDIA BUSINESS,853083001/004/0222,53.16
Department of Health,Leicestershire Partnership NHS Trust,18/02/22,Landline Telephone Rental / Calls,"Loughborough Hospital (P136, LPT)",VIRGIN MEDIA BUSINESS,853083001/004/0222,4975.21
Department of Health,Leicestershire Partnership NHS Trust,18/02/22,Landline Telephone Rental / Calls,Mawson House (LPT),VIRGIN MEDIA BUSINESS,853083001/004/0222,466.73
Department of Health,Leicestershire Partnership NHS Trust,18/02/22,Landline Telephone Rental / Calls,Merlyn Vaz Centre (CHP),VIRGIN MEDIA BUSINESS,853083001/004/0222,1405.20
Department of Health,Leicestershire Partnership NHS Trust,18/02/22,Landline Telephone Rental / Calls,"Mett Centre (P49, LPT)",VIRGIN MEDIA BUSINESS,853083001/004/0222,85.04
Department of Health,Leicestershire Partnership NHS Trust,18/02/22,Landline Telephone Rental / Calls,NSPCC Training Cente,VIRGIN MEDIA BUSINESS,853083001/004/0222,159.96
Department of Health,Leicestershire Partnership NHS Trust,18/02/22,Landline Telephone Rental / Calls,New Parks Health Centre (PROPCO),VIRGIN MEDIA BUSINESS,853083001/004/0222,1704.22
Department of Health,Leicestershire Partnership NHS Trust,18/02/22,Landline Telephone Rental / Calls,"OSL House (P54, LPT)",VIRGIN MEDIA BUSINESS,853083001/004/0222,977.83
Department of Health,Leicestershire Partnership NHS Trust,18/02/22,Landline Telephone Rental / Calls,"Orchard Resource Centre (P15, LPT)",VIRGIN MEDIA BUSINESS,853083001/004/0222,628.62
Department of Health,Leicestershire Partnership NHS Trust,18/02/22,Landline Telephone Rental / Calls,Pasley Road Health Centre (PROPCO),VIRGIN MEDIA BUSINESS,853083001/004/0222,107.11
Department of Health,Leicestershire Partnership NHS Trust,18/02/22,Landline Telephone Rental / Calls,"Prince Philip House (P96, LPT)",VIRGIN MEDIA BUSINESS,853083001/004/0222,1735.87
Department of Health,Leicestershire Partnership NHS Trust,18/02/22,Landline Telephone Rental / Calls,Rushey Mead Health Centre (PROPCO),VIRGIN MEDIA BUSINESS,853083001/004/0222,72.79
Department of Health,Leicestershire Partnership NHS Trust,18/02/22,Landline Telephone Rental / Calls,"Shepshed Health Centre (P123, LPT)",VIRGIN MEDIA BUSINESS,853083001/004/0222,12.58
Department of Health,Leicestershire Partnership NHS Trust,18/02/22,Landline Telephone Rental / Calls,"Springfield Road Health Centre (P92, LPT)",VIRGIN MEDIA BUSINESS,853083001/004/0222,319.66
Department of Health,Leicestershire Partnership NHS Trust,18/02/22,Landline Telephone Rental / Calls,"St Peters Health Center (Part 1st and 2nd floors) (P66, LPT)",VIRGIN MEDIA BUSINESS,853083001/004/0222,2208.54
Department of Health,Leicestershire Partnership NHS Trust,18/02/22,Landline Telephone Rental / Calls,"Swithland House - London Road 352 (P44, LPT)",VIRGIN MEDIA BUSINESS,853083001/004/0222,301.20
Department of Health,Leicestershire Partnership NHS Trust,18/02/22,Landline Telephone Rental / Calls,"The Cedars (P19, LPT)",VIRGIN MEDIA BUSINESS,853083001/004/0222,811.30
Department of Health,Leicestershire Partnership NHS Trust,18/02/22,Landline Telephone Rental / Calls,"The Willows - Cordelia Close (P22, LPT)",VIRGIN MEDIA BUSINESS,853083001/004/0222,604.18
Department of Health,Leicestershire Partnership NHS Trust,18/02/22,Landline Telephone Rental / Calls,"Valentine Centre (P3, LPT)",VIRGIN MEDIA BUSINESS,853083001/004/0222,1989.12
Department of Health,Leicestershire Partnership NHS Trust,18/02/22,Landline Telephone Rental / Calls,Warren Park Way 25 (PROPCO),VIRGIN MEDIA BUSINESS,853083001/004/0222,729.22
Department of Health,Leicestershire Partnership NHS Trust,18/02/22,Landline Telephone Rental / Calls,"Westcotes Group -Westcotes House (P78, LPT)",VIRGIN MEDIA BUSINESS,853083001/004/0222,1397.78
Department of Health,Leicestershire Partnership NHS Trust,18/02/22,Landline Telephone Rental / Calls,"Winstanley Drive Health Centre (P8, LPT)",VIRGIN MEDIA BUSINESS,853083001/004/0222,445.51
Department of Health,Leicestershire Partnership NHS Trust,22/02/22,Gas,"Beaumont Leys Health Centre (P94, LPT)",TOTAL GAS & POWER LTD,259535424/22,935.32
Department of Health,Leicestershire Partnership NHS Trust,22/02/22,Gas,"Bradgate Unit (including Glenvale day Unit) (P7, LPT)",TOTAL GAS & POWER LTD,259535424/22,27488.17
Department of Health,Leicestershire Partnership NHS Trust,22/02/22,Gas,Bridge Park Plaza - First Floor (LPT),TOTAL GAS & POWER LTD,259535424/22,1683.55
Department of Health,Leicestershire Partnership NHS Trust,22/02/22,Gas,"Bridge Park Road - Units 2 and 3 (P148, LPT)",TOTAL GAS & POWER LTD,259535424/22,368.17
Department of Health,Leicestershire Partnership NHS Trust,22/02/22,Gas,"Coalville Community Hospital (P138, LPT)",TOTAL GAS & POWER LTD,259535424/22,8001.19
Department of Health,Leicestershire Partnership NHS Trust,22/02/22,Gas,"Coalville Health Centre (P121, LPT)",TOTAL GAS & POWER LTD,259535424/22,702.20
Department of Health,Leicestershire Partnership NHS Trust,22/02/22,Gas,"Evington Centre (P6, LPT)",TOTAL GAS & POWER LTD,259535424/22,1353.74
Department of Health,Leicestershire Partnership NHS Trust,22/02/22,Gas,"Feilding Palmer Hospital (Lutterworth) (P131, LPT)",TOTAL GAS & POWER LTD,259535424/22,1528.62
Department of Health,Leicestershire Partnership NHS Trust,22/02/22,Gas,"Frith Cottages 3 & 4 (P36, LPT)",TOTAL GAS & POWER LTD,259535424/22,183.06
Department of Health,Leicestershire Partnership NHS Trust,22/02/22,Gas,HIS,TOTAL GAS & POWER LTD,259535424/22,267.91
Department of Health,Leicestershire Partnership NHS Trust,22/02/22,Gas,"Hawthorne Centre - Coalville (P14, LPT)",TOTAL GAS & POWER LTD,259535424/22,502.27
Department of Health,Leicestershire Partnership NHS Trust,22/02/22,Gas,"Hinckley and Bosworth Community Hospital (Sunnyside) (P133, LPT)",TOTAL GAS & POWER LTD,259535424/22,5499.82
Department of Health,Leicestershire Partnership NHS Trust,22/02/22,Gas,"Hynca Lodge (P33, LPT)",TOTAL GAS & POWER LTD,259535424/22,449.06
Department of Health,Leicestershire Partnership NHS Trust,22/02/22,Gas,"LGH - Gwendolen House (P4, LPT)",TOTAL GAS & POWER LTD,259535424/22,2012.70
Department of Health,Leicestershire Partnership NHS Trust,22/02/22,Gas,"Loughborough Hospital (P136, LPT)",TOTAL GAS & POWER LTD,259535424/22,15769.01
Department of Health,Leicestershire Partnership NHS Trust,22/02/22,Gas,Mawson House (LPT),TOTAL GAS & POWER LTD,259535424/22,813.58
Department of Health,Leicestershire Partnership NHS Trust,22/02/22,Gas,"Mett Centre (P49, LPT)",TOTAL GAS & POWER LTD,259535424/22,319.18
Department of Health,Leicestershire Partnership NHS Trust,22/02/22,Gas,"Narborough Health Centre (P117, LPT)",TOTAL GAS & POWER LTD,259535424/22,570.55
Department of Health,Leicestershire Partnership NHS Trust,22/02/22,Gas,"Neville Centre - LGH (was DSC) (P147, LPT)",TOTAL GAS & POWER LTD,259535424/22,902.92
Department of Health,Leicestershire Partnership NHS Trust,22/02/22,Gas,"OSL House (P54, LPT)",TOTAL GAS & POWER LTD,259535424/22,1034.41
Department of Health,Leicestershire Partnership NHS Trust,22/02/22,Gas,"Orchard Resource Centre (P15, LPT)",TOTAL GAS & POWER LTD,259535424/22,668.10
Department of Health,Leicestershire Partnership NHS Trust,22/02/22,Gas,"Rutland Memorial Hospital (P134, LPT)",TOTAL GAS & POWER LTD,259535424/22,2647.34
Department of Health,Leicestershire Partnership NHS Trust,22/02/22,Gas,"Shepshed Health Centre (P123, LPT)",TOTAL GAS & POWER LTD,259535424/22,672.05
Department of Health,Leicestershire Partnership NHS Trust,22/02/22,Gas,"Springfield Road Health Centre (P92, LPT)",TOTAL GAS & POWER LTD,259535424/22,672.14
Department of Health,Leicestershire Partnership NHS Trust,22/02/22,Gas,"Stewart House (P61, LPT)",TOTAL GAS & POWER LTD,259535424/22,3175.87
Department of Health,Leicestershire Partnership NHS Trust,22/02/22,Gas,"Swithland House - London Road 352 (P44, LPT)",TOTAL GAS & POWER LTD,259535424/22,1017.24
Department of Health,Leicestershire Partnership NHS Trust,22/02/22,Gas,"The Agnes Unit (AKA Assessment and Treatment Centre) (P85, LPT)",TOTAL GAS & POWER LTD,259535424/22,4590.98
Department of Health,Leicestershire Partnership NHS Trust,22/02/22,Gas,The Beacon,TOTAL GAS & POWER LTD,259535424/22,1953.96
Department of Health,Leicestershire Partnership NHS Trust,22/02/22,Gas,"The Cedars (P19, LPT)",TOTAL GAS & POWER LTD,259535424/22,376.25
Department of Health,Leicestershire Partnership NHS Trust,22/02/22,Gas,"The Grange 1 (P4, LPT)",TOTAL GAS & POWER LTD,259535424/22,320.66
Department of Health,Leicestershire Partnership NHS Trust,22/02/22,Gas,"The Grange 2 (P41, LPT)",TOTAL GAS & POWER LTD,259535424/22,259.10
Department of Health,Leicestershire Partnership NHS Trust,22/02/22,Gas,"The Willows - Cordelia Close (P22, LPT)",TOTAL GAS & POWER LTD,259535424/22,3138.67
Department of Health,Leicestershire Partnership NHS Trust,22/02/22,Gas,"Valentine Centre (P3, LPT)",TOTAL GAS & POWER LTD,259535424/22,1892.23
Department of Health,Leicestershire Partnership NHS Trust,22/02/22,Gas,"Westcotes Group -Westcotes House (P78, LPT)",TOTAL GAS & POWER LTD,259535424/22,1225.11
Department of Health,Leicestershire Partnership NHS Trust,22/02/22,Gas,"Winstanley Drive Health Centre (P8, LPT)",TOTAL GAS & POWER LTD,259535424/22,523.07
Department of Health,Leicestershire Partnership NHS Trust,22/02/22,NURSE - BAND 2 - AGENCY,Beechwood Ward,HCL NURSING,HNSI0000949,5766.05
Department of Health,Leicestershire Partnership NHS Trust,22/02/22,NURSE - BAND 5 - AGENCY,Beechwood Ward,HCL NURSING,HNSI0000949,3833.33
Department of Health,Leicestershire Partnership NHS Trust,22/02/22,NURSE - BAND 5 - AGENCY,City Planned Care - East,HCL NURSING,HNSI0000949,9661.68
Department of Health,Leicestershire Partnership NHS Trust,22/02/22,NURSE - BAND 5 - AGENCY,City Planned Care - West,HCL NURSING,HNSI0000949,12154.09
Department of Health,Leicestershire Partnership NHS Trust,22/02/22,NURSE - BAND 2 - AGENCY,Clarendon Ward,HCL NURSING,HNSI0000949,6096.62
Department of Health,Leicestershire Partnership NHS Trust,22/02/22,NURSE - BAND 5 - AGENCY,Clarendon Ward,HCL NURSING,HNSI0000949,4723.36
Department of Health,Leicestershire Partnership NHS Trust,22/02/22,NURSE - BAND 2 - AGENCY,Coalville Snibston Ward,HCL NURSING,HNSI0000949,2255.23
Department of Health,Leicestershire Partnership NHS Trust,22/02/22,NURSE - BAND 5 - AGENCY,Coalville Snibston Ward,HCL NURSING,HNSI0000949,2830.12
Department of Health,Leicestershire Partnership NHS Trust,22/02/22,NURSE - BAND 2 - AGENCY,Coalville Ward 2,HCL NURSING,HNSI0000949,2016.32
Department of Health,Leicestershire Partnership NHS Trust,22/02/22,NURSE - BAND 5 - AGENCY,Coalville Ward 2,HCL NURSING,HNSI0000949,5617.01
Department of Health,Leicestershire Partnership NHS Trust,22/02/22,NURSE - BAND 2 - AGENCY,Dalgliesh Ward,HCL NURSING,HNSI0000949,1272.11
Department of Health,Leicestershire Partnership NHS Trust,22/02/22,NURSE - BAND 5 - AGENCY,Dalgliesh Ward,HCL NURSING,HNSI0000949,2109.39
Department of Health,Leicestershire Partnership NHS Trust,22/02/22,NURSE - BAND 2 - AGENCY,H&B Comm Hosp East Ward,HCL NURSING,HNSI0000949,4725.87
Department of Health,Leicestershire Partnership NHS Trust,22/02/22,NURSE - BAND 5 - AGENCY,H&B Comm Hosp East Ward,HCL NURSING,HNSI0000949,8548.29
Department of Health,Leicestershire Partnership NHS Trust,22/02/22,NURSE - BAND 2 - AGENCY,H&B Comm Hosp North Ward,HCL NURSING,HNSI0000949,6014.99
Department of Health,Leicestershire Partnership NHS Trust,22/02/22,NURSE - BAND 5 - AGENCY,H&B Comm Hosp North Ward,HCL NURSING,HNSI0000949,3778.17
Department of Health,Leicestershire Partnership NHS Trust,22/02/22,NURSE - BAND 5 - AGENCY,Lough Swithland Ward,HCL NURSING,HNSI0000949,9676.78
Department of Health,Leicestershire Partnership NHS Trust,22/02/22,NURSE - BAND 2 - AGENCY,Rutland Ward Nursing,HCL NURSING,HNSI0000949,4627.49
Department of Health,Leicestershire Partnership NHS Trust,22/02/22,NURSE - BAND 5 - AGENCY,Rutland Ward Nursing,HCL NURSING,HNSI0000949,1274.85
Department of Health,Leicestershire Partnership NHS Trust,22/02/22,NURSE - BAND 2 - AGENCY,St Lukes Stroke Ward,HCL NURSING,HNSI0000949,2000.17
Department of Health,Leicestershire Partnership NHS Trust,22/02/22,NURSE - BAND 5 - AGENCY,St Lukes Stroke Ward,HCL NURSING,HNSI0000949,1635.13
Department of Health,Leicestershire Partnership NHS Trust,22/02/22,NURSE - BAND 2 - AGENCY,St Lukes Ward 3,HCL NURSING,HNSI0000949,1401.94
Department of Health,Leicestershire Partnership NHS Trust,22/02/22,NURSE - BAND 5 - AGENCY,St Lukes Ward 3,HCL NURSING,HNSI0000949,632.50
Department of Health,Leicestershire Partnership NHS Trust,22/02/22,NURSE - BAND 2 - AGENCY,Wakerley Ward,HCL NURSING,HNSI0000949,7014.59
Department of Health,Leicestershire Partnership NHS Trust,22/02/22,NURSE - BAND 5 - AGENCY,Wakerley Ward,HCL NURSING,HNSI0000949,6190.01
Department of Health,Leicestershire Partnership NHS Trust,22/02/22,Computer Software,Loughborough - Staff Vaccination Hub,SWIFTQUEUE TECH LTD,10586,36537.00
Department of Health,Leicestershire Partnership NHS Trust,22/02/22,Crs_NHS_LT1y -Resus Inventory Supplied.,Balance Sheet Collection,SUPPLY CHAIN CO LTD,1122212229,35847.97
Department of Health,Leicestershire Partnership NHS Trust,22/02/22,Crs_NHS_LT1y -Resus Inventory Supplied.,Balance Sheet Collection,SUPPLY CHAIN CO LTD,1122216565,67243.51
Department of Health,Leicestershire Partnership NHS Trust,23/02/22,Mobile Telephone Rental / Calls,Specific Unit Budget Reserves,VODAFONE CORPORATE LTD,000100398937,127234.30
Department of Health,Leicestershire Partnership NHS Trust,24/02/22,Computer Hardware,HIS External Recharge,BT GLOBAL SERVICES,589092,27187.20
Department of Health,Leicestershire Partnership NHS Trust,24/02/22,Computer Hardware,HIS External Recharge,BT GLOBAL SERVICES,589095,26265.60
Department of Health,Leicestershire Partnership NHS Trust,24/02/22,Electricity,"Belvoir Intensive Care Unit (P7, LPT)",UHL NHS TRUST (RWE),L0257774,1651.86
Department of Health,Leicestershire Partnership NHS Trust,24/02/22,Electricity,"Bennion Centre (including Forest Grange Day Unit) (P8, LPT)",UHL NHS TRUST (RWE),L0257774,5815.71
Department of Health,Leicestershire Partnership NHS Trust,24/02/22,Electricity,"Bradgate Unit (including Glenvale day Unit) (P7, LPT)",UHL NHS TRUST (RWE),L0257774,15998.22
Department of Health,Leicestershire Partnership NHS Trust,24/02/22,Contract : Premises Security,Estates & Facilities Central,UHL NHS TRUST (RWE),L0257774,2295.52
Department of Health,Leicestershire Partnership NHS Trust,24/02/22,Electricity,"Herschel Prins (P9, LPT)",UHL NHS TRUST (RWE),L0257774,4206.64
Department of Health,Leicestershire Partnership NHS Trust,24/02/22,Electricity,Modular Training Building,UHL NHS TRUST (RWE),L0257774,783.95
Department of Health,Leicestershire Partnership NHS Trust,24/02/22,Electricity,Pharmacy Portacabin,UHL NHS TRUST (RWE),L0257774,1211.02
Department of Health,Leicestershire Partnership NHS Trust,24/02/22,Services / Recharges from NHS Trusts,UHL Expenditure Contract,UHL NHS TRUST (RWE),L0257774,5552.23
Department of Health,Leicestershire Partnership NHS Trust,24/02/22,UHL Facilities Management SLA,Estates Central Invoices To Recharge,UHL NHS TRUST (RWE),L0257775,940375.84
